fUSD/lending_fUSD_20260228
["ID","MTS","AMOUNT","RATE_DAILY","PERIOD"]
[406855978,1772238641498,-500.0,0.00013698,2]
[406855979,1772238641507,-500.0,0.00013698,2]
[406855980,1772238641517,-500.0,0.00013698,2]
[406855981,1772238641529,-500.0,0.00013698,2]
[406855982,1772238641538,-500.0,0.00013698,2]
[406855983,1772238641547,-829.56,0.00013698,2]
[406855984,1772238641557,-500.0,0.00013698,2]
[406855985,1772238641567,-829.56,0.00013698,2]
[406855986,1772238641576,-500.0,0.00013698,2]
[406855987,1772238641585,-829.56,0.00013698,2]
[406855988,1772238641594,-500.0,0.00013698,2]
[406855989,1772238641603,-829.56,0.00013698,2]
[406855990,1772238641613,-500.0,0.00013698,2]
[406855991,1772238641622,-500.0,0.00013698,2]
[406855992,1772238641632,-829.56,0.00013698,2]
[406855993,1772238641642,-500.0,0.00013698,2]
[406855994,1772238641652,-829.56,0.00013698,2]
[406855995,1772238641662,-500.0,0.00013698,2]
[406855996,1772238641672,-829.56,0.00013698,2]
[406855997,1772238641683,-500.0,0.00013698,2]
[406855999,1772238641692,-829.56,0.00013698,2]
[406856001,1772238641701,-500.0,0.00013698,2]
[406856003,1772238641711,-829.56,0.00013698,2]
[406856004,1772238641720,-500.0,0.00013698,2]
[406856005,1772238641730,-500.0,0.00013698,2]
[406856006,1772238641739,-500.0,0.00013698,2]
[406856007,1772238641748,-500.0,0.00013698,2]
[406856008,1772238641758,-500.0,0.00013698,2]
[406856009,1772238641768,-500.0,0.00013698,2]
[406856010,1772238641777,-500.0,0.00013698,2]
[406856011,1772238641787,-500.0,0.00013698,2]
[406856012,1772238641796,-500.0,0.00013698,2]
[406856013,1772238641806,-500.0,0.00013698,2]
[406856014,1772238641815,-500.0,0.00013698,2]
[406856015,1772238641825,-500.0,0.00013698,2]
[406856016,1772238641835,-500.0,0.00013698,2]
[406856017,1772238641844,-500.0,0.00013698,2]
[406856018,1772238641854,-500.0,0.00013698,2]
[406856019,1772238641863,-500.0,0.00013698,2]
[406856020,1772238641873,-500.0,0.00013698,2]
[406856021,1772238641883,-500.0,0.00013698,2]
[406856022,1772238641891,-500.0,0.00013698,2]
[406856023,1772238641901,-500.0,0.00013698,2]
[406856024,1772238641911,-500.0,0.00013698,2]
[406856025,1772238641919,-500.0,0.00013698,2]
[406856026,1772238641928,-500.0,0.00013698,2]
[406856027,1772238641938,-500.0,0.00013698,2]
[406856028,1772238641947,-500.0,0.00013698,2]
[406856029,1772238641956,-500.0,0.00013698,2]
[406856030,1772238641965,-500.0,0.00013698,2]
[406856031,1772238641975,-919.61,0.00013699,2]
[406856032,1772238641984,-842.63,0.00013699,2]
[406856033,1772238641994,-288.09474142,0.00013699,2]
[406856034,1772238642003,-500.0,0.00013699,2]
[406856035,1772238642013,-500.0,0.00013699,2]
[406856036,1772238642022,-500.0,0.00013699,2]
[406856037,1772238642031,-500.0,0.00013699,2]
[406856038,1772238642040,-526.85264,0.00013699,2]
[406856039,1772238642050,-500.0,0.00013699,2]
[406856040,1772238642059,-502.28503114,0.00013699,2]
[406856041,1772238642068,-500.0,0.00013699,2]
[406856042,1772238642078,-500.0,0.00013699,2]
[406856043,1772238642087,-500.0,0.00013699,2]
[406856044,1772238642096,-164.29010834,0.00013699,2]
[406856045,1772238642105,-500.0,0.00013699,2]
[406856046,1772238642114,-500.0,0.00013699,2]
[406856047,1772238642124,-500.0,0.00013699,2]
[406856048,1772238642133,-500.0,0.00013699,2]
[406856049,1772238642143,-500.0,0.00013699,2]
[406856050,1772238642152,-500.0,0.00013699,2]
[406856051,1772238642162,-500.0,0.00013699,2]
[406856052,1772238642171,-500.0,0.00013699,2]
[406856053,1772238642180,-500.0,0.00013699,2]
[406856054,1772238642188,-500.0,0.00013699,2]
[406856055,1772238642197,-507.14846603,0.00013699,2]
[406856056,1772238642207,-500.0,0.00013699,2]
[406856057,1772238642216,-500.0,0.00013699,2]
[406856058,1772238642225,-500.0,0.00013699,2]
[406856059,1772238642235,-500.0,0.00013699,2]
[406856060,1772238642244,-500.0,0.00013699,2]
[406856061,1772238642253,-500.0,0.00013699,2]
[406856062,1772238642262,-500.0,0.00013699,2]
[406856063,1772238642273,-500.0,0.00013699,2]
[406856064,1772238642282,-500.0,0.00013699,2]
[406856065,1772238642291,-500.0,0.00013699,2]
[406856066,1772238642301,-500.0,0.00013699,2]
[406856067,1772238642310,-500.0,0.00013699,2]
[406856068,1772238642321,-310.9054072,0.00013699,2]
[406856069,1772238642331,-500.0,0.00013699,2]
[406856070,1772238642341,-295.80767039,0.00013699,2]
[406856071,1772238642350,-161.8,0.000137,2]
[406856072,1772238642360,-50000.0,0.000137,2]
[406856073,1772238642369,-5500.0,0.000139,5]
[406856074,1772238642378,-508.0,0.0001411,2]
[406856075,1772238642387,-444.08918902,0.00014147,2]
[406856076,1772238642397,-1409.36839437,0.00014147,2]
[406856077,1772238642406,-32881.30820754,0.000142,2]
[406856078,1772238642416,-1000.0,0.00014247,2]
[406856079,1772238642425,-687.41667409,0.00014247,2]
[406856080,1772238642434,-1000.0,0.00014247,2]
[406856081,1772238642443,-1000.0,0.00014247,2]
[406856082,1772238642453,-1000.0,0.00014247,2]
[406856083,1772238642463,-1008.10480934,0.00014247,2]
[406856084,1772238642471,-1000.0,0.00014247,2]
[406856085,1772238642480,-1000.0,0.00014247,2]
[406856086,1772238642490,-1000.0,0.00014247,2]
[406856087,1772238642499,-509.93232969,0.00014247,2]
[406856088,1772238642508,-1000.0,0.00014247,2]
[406856089,1772238642518,-1000.0,0.00014247,2]
[406856090,1772238642527,-1000.0,0.00014247,2]
[406856091,1772238642536,-1000.0,0.00014247,2]
[406856092,1772238642546,-1000.0,0.00014247,2]
[406856093,1772238642555,-512.76163768,0.00014247,2]
[406856094,1772238642564,-1000.0,0.00014247,2]
[406856095,1772238642574,-1000.0,0.00014247,2]
[406856096,1772238642584,-1000.0,0.00014247,2]
[406856097,1772238642593,-1000.0,0.00014247,2]
[406856098,1772238642603,-1000.0,0.00014247,2]
[406856099,1772238642612,-1000.0,0.00014247,2]
[406856100,1772238642622,-1000.0,0.00014247,2]
[406856101,1772238642632,-1000.0,0.00014247,2]
[406856102,1772238642641,-1000.0,0.00014247,2]
[406856103,1772238642651,-1000.0,0.00014247,2]
[406856104,1772238642660,-1000.0,0.00014247,2]
[406856105,1772238642669,-919.61,0.00014384,2]
[406856106,1772238642678,-192.39,0.00014499,2]
[406856107,1772238642687,-151.0,0.00014634,2]
[406856108,1772238642697,-151.0,0.00014634,2]
[406856109,1772238642706,-903.053969,0.00014678,7]
[406856110,1772238642715,-3171.79827985,0.00014695,2]
[406856111,1772238642724,-1600.0,0.00014705,2]
[406856112,1772238642734,-2221.44815633,0.00014774,2]
[406856113,1772238642743,-500.0,0.00014794,2]
[406856114,1772238642752,-500.0,0.00014794,2]
[406856115,1772238642762,-500.0,0.00014794,2]
[406856116,1772238642771,-829.56,0.00014794,2]
[406856117,1772238642781,-500.0,0.00014794,2]
[406856118,1772238642791,-500.0,0.00014794,2]
[406856119,1772238642800,-500.0,0.00014794,2]
[406856120,1772238642809,-429.49570382,0.00014795,2]
[406856121,1772238642819,-1147.84261484,0.00014795,2]
[406856122,1772238642828,-1511.45189164,0.00014795,2]
[406856123,1772238642837,-1500.0,0.00014795,2]
[406856124,1772238642847,-1500.0,0.00014795,2]
[406856125,1772238642856,-1500.0,0.00014795,2]
[406856126,1772238642865,-1500.0,0.00014795,2]
[406856127,1772238642874,-1500.0,0.00014795,2]
[406856128,1772238642883,-1500.0,0.00014795,2]
[406856129,1772238642892,-1500.0,0.00014795,2]
[406856130,1772238642908,-1500.0,0.00014795,2]
[406856131,1772238642917,-1144.44196517,0.00014795,2]
[406856132,1772238642926,-1500.0,0.00014795,2]
[406856133,1772238642935,-1500.0,0.00014795,2]
[406856134,1772238642944,-741.17434169,0.00014795,2]
[406856135,1772238642954,-1500.0,0.00014795,2]
[406856136,1772238642963,-1500.0,0.00014795,2]
[406856137,1772238642973,-1597.09510233,0.00014795,2]
[406856138,1772238642983,-1500.0,0.00014795,2]
[406856139,1772238642992,-1500.0,0.00014795,2]
[406856140,1772238643001,-1500.0,0.00014795,2]
[406856141,1772238643010,-1500.0,0.00014795,2]
[406856142,1772238643019,-1500.0,0.00014795,2]
[406856143,1772238643028,-339.602295,0.00014835,7]
[406856144,1772238643037,-9984.67,0.00014853,2]
[406856146,1772238643047,-12723.5155952,0.00014968,2]
[406856148,1772238643057,-250.0,0.00015,2]
[406856150,1772238643065,-874.83,0.00015068,2]
[406856152,1772238643075,-919.61,0.00015068,2]
[406856154,1772238643084,-902.4,0.0001531,2]
[406856156,1772238643093,-9999.99,0.0001531,2]
[406856157,1772238643103,-29999.99,0.0001531,2]
[406856158,1772238643114,-599.83,0.00015342,2]
[406856159,1772238643124,-247.77184833,0.00015342,2]
[406856160,1772238643133,-2000.0,0.00015342,2]
[406856161,1772238643142,-2000.0,0.00015342,2]
[406856163,1772238643151,-2000.0,0.00015342,2]
[406856164,1772238643159,-203.52805437,0.00015342,2]
[406856165,1772238643169,-1000.0,0.00015342,2]
[406856166,1772238643178,-1516.10263761,0.00015342,2]
[406856168,1772238643187,-2000.0,0.00015342,2]
[406856170,1772238643196,-1614.542994,0.00015342,2]
[406856171,1772238643205,-538.67533251,0.00015342,2]
[406856173,1772238643215,-1201.13446519,0.00015342,2]
[406856175,1772238643224,-2000.0,0.00015342,2]
[406856177,1772238643235,-2000.0,0.00015342,2]
[406856178,1772238643244,-2000.0,0.00015342,2]
[406856179,1772238643254,-2000.0,0.00015342,2]
[406856180,1772238643263,-1505.60534384,0.00015342,2]
[406856181,1772238643276,-215.41849404,0.00015342,2]
[406856182,1772238643285,-32881.30820754,0.00015433,2]
[406856183,1772238643294,-160.0,0.00015489,2]
[406856184,1772238643303,-174.00015664,0.00015489,2]
[406856185,1772238643312,-288.61,0.000157,2]
[406856186,1772238643323,-919.61,0.00015753,2]
[406856187,1772238643332,-183.5,0.00015826,2]
[406856188,1772238643341,-2500.0,0.0001589,2]
[406856189,1772238643352,-2028.27485084,0.0001589,2]
[406856190,1772238643361,-708.62062,0.0001589,2]
[406856191,1772238643371,-2500.0,0.0001589,2]
[406856192,1772238643380,-2500.0,0.0001589,2]
[406856193,1772238643390,-2275.06944665,0.0001589,2]
[406856194,1772238643399,-1023.31974037,0.0001589,2]
[406856195,1772238643408,-1005.53161927,0.0001589,2]
[406856196,1772238643417,-5000.0,0.0001596,2]
[406856197,1772238643426,-444.089189,0.00016024,2]
[406856198,1772238643436,-1409.36839435,0.00016024,2]
[406856199,1772238643445,-9999.99,0.00016116,2]
[406856200,1772238643454,-1600.0,0.00016175,2]
[406856201,1772238643464,-3171.79827983,0.00016298,2]
[406856202,1772238643473,-2221.44815633,0.00016337,2]
[406856203,1772238643482,-12723.51559519,0.00016434,2]
[406856204,1772238643492,-813.0,0.00016438,2]
[406856205,1772238643501,-266.68789925,0.00016438,2]
[406856206,1772238643511,-919.61,0.00016438,2]
[406856207,1772238643520,-1484.08045004,0.00016438,2]
[406856208,1772238643530,-2291.80881226,0.00016438,2]
[406856209,1772238643540,-3000.0,0.00016438,2]
[406856210,1772238643550,-813.0,0.00016493,2]
[406856211,1772238643559,-813.0,0.00016548,2]
[406856212,1772238643568,-1000.0,0.0001655,7]
[406856213,1772238643577,-813.0,0.00016602,2]
[406856214,1772238643587,-813.0,0.00016657,2]
[406856215,1772238643596,-32881.30820754,0.00016667,2]
[406856216,1772238643605,-813.0,0.00016712,2]
[406856217,1772238643614,-813.0,0.00016767,2]
[406856218,1772238643623,-2000.0,0.0001681,2]
[406856219,1772238643633,-813.0,0.00016822,2]
[406856220,1772238643642,-304.59,0.00016823,2]
[406856221,1772238643651,-813.0,0.00016876,2]
[406856222,1772238643660,-2000.0,0.0001691,2]
[406856223,1772238643670,-168.0,0.00016918,2]
[406856224,1772238643679,-813.0,0.00016931,2]
[406856225,1772238643688,-150.0,0.00016938,7]
[406856226,1772238643697,-168.0,0.00016945,2]
[406856227,1772238643706,-168.0,0.00016981,2]
[406856228,1772238643715,-813.0,0.00016986,2]
[406856229,1772238643724,-1000.0,0.00016986,2]
[406856234,1772238643856,-733.851,0.00016986,2]
[406856236,1772238643867,-3500.0,0.00016986,2]
[406856238,1772238643876,-300.0,0.00017,2]
[406856239,1772238643885,-2000.0,0.0001701,2]
[406856240,1772238643894,-813.0,0.00017041,2]
[406856241,1772238643904,-813.0,0.00017096,2]
[406856242,1772238643913,-269.917619,0.00017099,2]
[406856243,1772238643922,-500.0,0.00017099,2]
[406856244,1772238643931,-500.0,0.00017099,2]
[406856245,1772238643941,-500.0,0.00017099,2]
[406856246,1772238643950,-151.0,0.00017099,2]
[406856247,1772238643958,-151.0,0.00017099,2]
[406856248,1772238643968,-500.0,0.00017099,2]
[406856249,1772238643977,-500.0,0.00017099,2]
[406856250,1772238643986,-500.0,0.00017099,2]
[406856251,1772238643996,-500.0,0.00017099,2]
[406856252,1772238644005,-500.0,0.00017099,2]
[406856253,1772238644014,-500.0,0.00017099,2]
[406856254,1772238644023,-500.0,0.00017099,2]
[406856255,1772238644032,-500.0,0.00017099,2]
[406856256,1772238644041,-500.0,0.00017099,2]
[406856257,1772238644050,-500.0,0.00017099,2]
[406856258,1772238644059,-500.0,0.00017099,2]
[406856259,1772238644068,-500.0,0.00017099,2]
[406856260,1772238644078,-174.61919141,0.00017099,2]
[406856261,1772238644087,-668.65185757,0.00017099,2]
[406856263,1772238644096,-316.29223115,0.00017099,2]
[406856265,1772238644106,-813.0,0.0001715,2]
[406856267,1772238644115,-154.60993757,0.00017154,2]
[406856269,1772238644124,-693.3919763,0.00017154,2]
[406856271,1772238644133,-813.0,0.00017205,2]
[406856272,1772238644142,-719.04747942,0.00017209,2]
[406856273,1772238644151,-813.0,0.0001726,2]
[406856274,1772238644160,-745.65223616,0.00017264,2]
[406856275,1772238644168,-813.0,0.00017315,2]
[406856276,1772238644177,-773.2413689,0.00017319,2]
[406856277,1772238644186,-200.0,0.00017365,2]
[406856278,1772238644196,-813.0,0.0001737,2]
[406856279,1772238644205,-801.85129955,0.00017374,2]
[406856280,1772238644214,-813.0,0.00017424,2]
[406856281,1772238644223,-831.51979763,0.00017429,2]
[406856282,1772238644232,-500.0,0.00017478,2]
[406856283,1772238644241,-813.0,0.00017479,2]
[406856284,1772238644250,-862.28603014,0.00017484,2]
[406856285,1772238644259,-449.110364,0.00017519,7]
[406856286,1772238644267,-4142.21336,0.00017519,7]
[406856287,1772238644280,-813.0,0.00017534,2]
[406856288,1772238644289,-3974.15344995,0.00017534,2]
[406856289,1772238644298,-894.19061326,0.00017539,2]
[406856290,1772238644307,-168.0,0.00017555,2]
[406856291,1772238644318,-700.0,0.00017564,2]
[406856292,1772238644327,-813.0,0.00017589,2]
[406856293,1772238644336,-927.27566595,0.00017594,2]
[406856294,1772238644347,-6900.0,0.000176,6]
[406856295,1772238644356,-1074.02541884,0.0001764,2]
[406856296,1772238644365,-1018.53434787,0.0001764,2]
[406856297,1772238644374,-1087.44557965,0.0001764,2]
[406856298,1772238644383,-1003.94974792,0.0001764,2]
[406856299,1772238644392,-1099.10232956,0.0001764,2]
[406856300,1772238644401,-1113.79912508,0.0001764,2]
[406856301,1772238644411,-1142.08112201,0.0001764,2]
[406856302,1772238644421,-1075.47376954,0.0001764,2]
[406856303,1772238644429,-1110.50570076,0.0001764,2]
[406856304,1772238644439,-1027.36332637,0.0001764,2]
[406856305,1772238644448,-1135.31038159,0.0001764,2]
[406856306,1772238644457,-1132.72138366,0.0001764,2]
[406856307,1772238644466,-1069.88862269,0.0001764,2]
[406856308,1772238644475,-1081.05134781,0.0001764,2]
[406856309,1772238644484,-1897.55375763,0.0001764,2]
[406856310,1772238644494,-813.0,0.00017643,2]
[406856311,1772238644502,-1600.0,0.00017646,2]
[406856312,1772238644512,-279.9045709,0.00017647,2]
[406856313,1772238644521,-156.60529538,0.00017647,2]
[406856314,1772238644531,-181.08010149,0.00017647,2]
[406856315,1772238644539,-961.58486559,0.00017649,2]
[406856316,1772238644549,-168.0,0.00017653,2]
[406856317,1772238644558,-823.0,0.00017698,2]
[406856318,1772238644566,-1300.0,0.000177,6]
[406856319,1772238644575,-997.16350561,0.00017704,2]
[406856320,1772238644584,-168.0,0.00017715,2]
[406856321,1772238644594,-1300.0,0.000178,6]
[406856322,1772238644603,-5000.0,0.00017808,2]
[406856323,1772238644613,-500.0,0.00017808,2]
[406856324,1772238644622,-500.0,0.00017808,2]
[406856325,1772238644632,-500.0,0.00017808,2]
[406856326,1772238644641,-500.0,0.00017808,2]
[406856327,1772238644650,-500.0,0.00017808,2]
[406856328,1772238644659,-500.0,0.00017808,2]
[406856329,1772238644668,-417.11459793,0.00017808,2]
[406856330,1772238644678,-500.0,0.00017808,2]
[406856331,1772238644687,-500.0,0.00017808,2]
[406856332,1772238644696,-500.0,0.00017808,2]
[406856333,1772238644706,-500.0,0.00017808,2]
[406856334,1772238644715,-500.0,0.00017808,2]
[406856335,1772238644724,-350.0,0.00017808,2]
[406856336,1772238644734,-500.0,0.00017808,2]
[406856337,1772238644743,-500.0,0.00017808,2]
[406856338,1772238644752,-500.0,0.00017808,2]
[406856339,1772238644761,-500.0,0.00017808,2]
[406856340,1772238644770,-150.0,0.00017808,2]
[406856341,1772238644780,-800.0,0.00017808,2]
[406856342,1772238644788,-210.23986,0.0001782,2]
[406856343,1772238644797,-210.23986,0.0001782,2]
[406856344,1772238644806,-151.0,0.00017827,2]
[406856345,1772238644816,-500.0,0.00017829,2]
[406856346,1772238644825,-500.0,0.00017829,2]
[406856347,1772238644835,-829.56,0.00017829,2]
[406856348,1772238644845,-500.0,0.00017829,2]
[406856349,1772238644854,-500.0,0.00017829,2]
[406856350,1772238644865,-500.0,0.00017829,2]
[406856351,1772238644874,-2568.50969261,0.0001783,2]
[406856352,1772238644883,-137550.62068451,0.0001783,2]
[406856353,1772238644893,-150.0,0.00017863,2]
[406856354,1772238644903,-2026.47664966,0.0001789,2]
[406856355,1772238644912,-750.0,0.00017899,2]
[406856356,1772238644921,-500.0,0.00017899,2]
[406856357,1772238644930,-500.0,0.00017899,2]
[406856358,1772238644939,-313.34247632,0.00017899,2]
[406856359,1772238644948,-500.0,0.00017899,2]
[406856360,1772238644957,-829.56,0.00017899,2]
[406856361,1772238644966,-500.0,0.00017899,2]
[406856362,1772238644975,-829.56,0.00017899,2]
[406856363,1772238644985,-500.0,0.00017899,2]
[406856364,1772238644994,-829.56,0.00017899,2]
[406856365,1772238645003,-500.0,0.00017899,2]
[406856366,1772238645013,-829.56,0.00017899,2]
[406856367,1772238645023,-500.0,0.00017899,2]
[406856368,1772238645032,-829.56,0.00017899,2]
[406856369,1772238645042,-500.0,0.00017899,2]
[406856370,1772238645051,-829.56,0.00017899,2]
[406856371,1772238645060,-500.0,0.00017899,2]
[406856372,1772238645070,-500.0,0.00017899,2]
[406856373,1772238645079,-500.0,0.00017899,2]
[406856374,1772238645088,-500.0,0.00017899,2]
[406856375,1772238645097,-500.0,0.00017899,2]
[406856376,1772238645106,-500.0,0.00017899,2]
[406856377,1772238645115,-500.0,0.00017899,2]
[406856378,1772238645124,-500.0,0.00017899,2]
[406856379,1772238645134,-500.0,0.00017899,2]
[406856380,1772238645142,-500.0,0.00017899,2]
[406856381,1772238645152,-500.0,0.00017899,2]
[406856382,1772238645161,-500.0,0.00017899,2]
[406856383,1772238645170,-488.82378682,0.00017899,2]
[406856384,1772238645179,-1500000.0,0.000179,2]
[406856385,1772238645188,-32885.2992,0.000179,2]
[406856386,1772238645197,-263.6441,0.000179,2]
[406856387,1772238645206,-1000.0,0.000179,2]
[406856388,1772238645215,-19420.49031765,0.000179,3]
[406856389,1772238645225,-151.0,0.000179,2]
[406856390,1772238645234,-151.0,0.000179,2]
[406856391,1772238645243,-153.208343,0.000179,2]
[406856392,1772238645252,-151.0,0.000179,2]
[406856393,1772238645261,-151.0,0.000179,2]
[406856394,1772238645271,-151.0,0.000179,2]
[406856395,1772238645282,-151.0,0.000179,2]
[406856396,1772238645291,-1390.36857003,0.000179,2]
[406856397,1772238645300,-151.0,0.000179,2]
[406856398,1772238645309,-151.0,0.000179,2]
[406856399,1772238645319,-227.421624,0.000179,2]
[406856400,1772238645329,-151.0,0.000179,2]
[406856401,1772238645338,-151.0,0.000179,2]
[406856402,1772238645350,-1300.0,0.000179,6]
[406856403,1772238645359,-2221.44815633,0.000179,2]
[406856404,1772238645368,-151.0,0.000179,2]
[406856405,1772238645378,-32881.30820754,0.000179,2]
[406856406,1772238645387,-444.089189,0.000179,2]
[406856407,1772238645396,-3171.79827983,0.000179,2]
[406856408,1772238645405,-12723.51559519,0.000179,2]
[406856409,1772238645414,-1409.36839435,0.000179,2]
[406856410,1772238645424,-14102.0,0.000179,2]
[406856411,1772238645433,-150.0,0.00017918,2]
[406856412,1772238645443,-150.0,0.00017972,2]
[406856413,1772238645453,-150.0,0.00017973,2]
[406856414,1772238645462,-150.0,0.00017973,2]
[406856415,1772238645472,-503.03652017,0.00017982,2]
[406856416,1772238645481,-2026.47664966,0.0001799,2]
[406856417,1772238645490,-500.0,0.00017993,2]
[406856418,1772238645499,-829.56,0.00017993,2]
[406856419,1772238645508,-500.0,0.00017993,2]
[406856420,1772238645518,-829.56,0.00017993,2]
[406856421,1772238645527,-500.0,0.00017993,2]
[406856422,1772238645537,-200.46401906,0.00017993,2]
[406856423,1772238645547,-500.0,0.00017993,2]
[406856424,1772238645556,-500.0,0.00017993,2]
[406856425,1772238645565,-14645.5957072,0.00017994,2]
[406856426,1772238645574,-401461.4076566,0.00017994,2]
[406856427,1772238645584,-1107.76913408,0.00017999,5]
[406856428,1772238645593,-1107.76913409,0.00017999,5]
[406856429,1772238645602,-750.0,0.00017999,2]
[406856430,1772238645611,-750.0,0.00017999,2]
[406856431,1772238645620,-750.0,0.00017999,2]
[406856432,1772238645630,-750.0,0.00017999,2]
[406856433,1772238645639,-750.0,0.00017999,2]
[406856434,1772238645648,-750.0,0.00017999,2]
[406856435,1772238645657,-750.0,0.00017999,2]
[406856436,1772238645667,-750.0,0.00017999,2]
[406856437,1772238645675,-750.0,0.00017999,2]
[406856438,1772238645685,-750.0,0.00017999,2]
[406856439,1772238645694,-750.0,0.00017999,2]
[406856440,1772238645703,-750.0,0.00017999,2]
[406856441,1772238645712,-750.0,0.00017999,2]
[406856442,1772238645722,-300.0,0.00017999,2]
[406856443,1772238645731,-300.0,0.00017999,2]
[406856444,1772238645740,-187.70521173,0.00017999,2]
[406856445,1772238645749,-500.0,0.00017999,2]
[406856446,1772238645759,-500.0,0.00017999,2]
[406856447,1772238645770,-500.0,0.00017999,2]
[406856448,1772238645779,-500.0,0.00017999,2]
[406856449,1772238645788,-522.57762627,0.00017999,2]
[406856450,1772238645798,-500.0,0.00017999,2]
[406856451,1772238645807,-500.0,0.00017999,2]
[406856452,1772238645816,-829.56,0.00017999,2]
[406856453,1772238645826,-500.0,0.00017999,2]
[406856454,1772238645835,-829.56,0.00017999,2]
[406856455,1772238645844,-829.56,0.00017999,2]
[406856456,1772238645853,-271.27695411,0.00017999,2]
[406856457,1772238645863,-829.56,0.00017999,2]
[406856458,1772238645872,-829.63282882,0.00017999,2]
[406856459,1772238645880,-173.81708552,0.00017999,2]
[406856460,1772238645890,-300.0,0.00017999,2]
[406856461,1772238645899,-286.61762734,0.00017999,2]
[406856462,1772238645909,-194.04859862,0.00017999,2]
[406856463,1772238645918,-5899088.74541923,0.00018,2]
[406856468,1772238646023,-330.41,0.00018,2]
[406856470,1772238646034,-544.77365611,0.00018,2]
[406856471,1772238646045,-1943.64746376,0.00018,2]
[406856472,1772238646056,-1019.64210675,0.00018,2]
[406856474,1772238646091,-480.75371175,6.9e-05,2]
[406856475,1772238646104,-348.8120897,6.9e-05,2]
[406856476,1772238646113,-1720.14982419,6.9e-05,2]
[406856477,1772238646122,-77305.02083444,0.00018,2]
[406856478,1772238646134,-13987.55721155,0.00018,2]
[406856479,1772238646195,-36660.7558466,0.00014107,2]
[406856497,1772238734784,160.0,0.000153,120]
[406856498,1772238743829,10000.01,6.63e-05,2]
[406856499,1772238743861,10000.01,6.63e-05,2]
[406856500,1772238744020,10000.01,6.63e-05,2]
[406856501,1772238744047,10000.01,6.63e-05,2]
[406856502,1772238744075,10000.01,6.63e-05,2]
[406856503,1772238744108,10000.01,6.63e-05,2]
[406856504,1772238744138,10000.01,6.63e-05,2]
[406856505,1772238744167,10000.01,6.63e-05,2]
[406856506,1772238744193,10000.01,6.63e-05,2]
[406856507,1772238744220,10000.01,6.63e-05,2]
[406856508,1772238759848,-2244.21354395,6.62e-05,2]
[406856509,1772238760074,-4488.4270879,6.62e-05,2]
[406856510,1772238760194,-1023.1558242,6.62e-05,2]
[406856511,1772238771853,-1870.61808189,6.629e-05,2]
[406856512,1772238771943,-10000.01,6.629e-05,2]
[406856513,1772238772092,-10000.01,6.629e-05,2]
[406856514,1772238826428,161.92503795,6.5e-05,2]
[406856515,1772238826533,174.36542985,6.5e-05,2]
[406856516,1772238826664,187.62432466,6.5e-05,2]
[406856517,1772238909610,-300.0,6.628e-05,2]
[406856518,1772238909634,-757.0,6.628e-05,2]
[406856519,1772238909656,-159.0,6.628e-05,2]
[406856520,1772238909678,-1200.0,6.628e-05,2]
[406856521,1772238909700,-300.0,6.628e-05,2]
[406856522,1772238909720,-11008.0,6.629e-05,2]
[406856523,1772239235915,9476.09520754,6.529e-05,2]
[406856524,1772239235942,10000.01,6.529e-05,2]
[406856525,1772239235969,10000.01,6.529e-05,2]
[406856526,1772239235996,10000.01,6.529e-05,2]